Cogmind - Beta 16 @@@ ROGUE MODE // 2025.12.24 @ 16:13:20 Player: mirus Result: Destroyed by G-47 Trooper with Particle Gun Performance ------------- Evolutions (2) 1000 Regions Visited (4) 800 Robots Destroyed (46) 230 Value Destroyed (1112) 1112 Prototype IDs (1) 20 Alien Tech Used (0) 0 Bonus (0) 0 TOTAL SCORE: 3162 Bonus ------- None Cogmind --------- Core Integrity 0/550 Matter 270/300 Energy 72/250 System Corruption 0% Temperature Cool (20) Movement Walking (190) Ox1 Location -8/Materials Parts ------- > --- POWER (2) -------- Ion Engine > --- PROPULSION (2) --- Carbon-fiber Leg Compact Wheel > --- UTILITY (4) ------ Improved Heat Sink Medium Storage Unit > --- WEAPON (3) ------- Particle Gun > --- INVENTORY (10) --- Medium Matter Pod (100) Improved Terrain Scanner Seismic Detector Peak State ------------ > --- POWER ------------ Improved Ion Engine Improved Ion Engine > --- PROPULSION ------- Light Treads Light Treads > --- UTILITY ---------- Improved Heat Sink Medium Storage Unit Medium Matter Pod Shield Generator > --- WEAPON ----------- Beam Rifle Advanced Beam Rifle Advanced Beam Rifle > --- INVENTORY -------- Ion Engine Carbon-fiber Leg Compact Wheel Improved Terrain Scanner Seismic Detector Targeting Computer [Rating: 24] Favorites ----------- Power Light Ion Engine Engine Light Ion Engine Power Core Light Nuclear Core Propulsion Light Treads Treads Light Treads Leg Aluminum Leg Wheel Compact Wheel Flight Unit VTOL Module Utility Medium Storage Unit Device Improved Heat Sink Storage Medium Storage Unit Processor Targeting Computer Hackware Hacking Suite Protection Light Armor Plating Weapon Advanced Beam Rifle Energy Gun Advanced Beam Rifle Energy Cannon Beam Cannon Ballistic Gun Light Assault Rifle Special Weapon Mining Laser Build | -11 -10 -10 -9 -8 ------- Run | Yrd Mat Min Mat Mat Slots Evolved 4 | . . . 2 2 Power 1 | . . . 1 . Propulsion . | . . . . . Utility 2 | . . . 1 1 Weapon 1 | . . . . 1 Parts Attached 49 | 12 3 1 28 5 Power 10 | 2 . 1 6 1 Engine 9 | 2 . 1 6 . Core 1 | . . . . 1 Reactor . | . . . . . Propulsion 13 | 4 . . 8 1 Treads 4 | 2 . . 2 . Leg 3 | 2 . . 1 . Wheel 4 | . . . 3 1 Hover . | . . . . . Flight 2 | . . . 2 . Utility 13 | 2 2 . 7 2 Device 7 | . 1 . 5 1 Storage 3 | 2 1 . . . Processor 1 | . . . . 1 Hackware 1 | . . . 1 . Protection 1 | . . . 1 . Artifact . | . . . . . Weapon 13 | 4 1 . 7 1 Energy Gun 7 | 1 . . 5 1 Energy Cannon 1 | . 1 . . . Ballistic Gun 3 | 2 . . 1 . Ballistic Cannon . | . . . . . Launcher . | . . . . . Special Weapon 2 | 1 . . 1 . Impact Weapon . | . . . . . Slashing Weapon . | . . . . . Piercing Weapon . | . . . . . Special Melee Weapon . | . . . . . Unidentified Prototypes 1 | . . . 1 . Parts Lost 29 | . . . 17 12 Power 8 | . . . 5 3 Propulsion 7 | . . . 4 3 Utility 5 | . . . 2 3 Weapon 9 | . . . 6 3 Highest Loss Streak 7 | . . . 7 7 To Critical Strikes . | . . . . . Average Backups 5 | 3 6 7 5 5 Power . | . 1 1 1 1 Propulsion 1 | . 1 1 1 2 Utility 2 | . 3 4 2 2 Weapon . | 1 1 1 . . Tool/Special . | . . . . . Unused Backups . | . . . . . Power . | . . . . . Propulsion . | . . . . . Utility . | . . . . . Weapon . | . . . . . Tool/Special . | . . . . . Average Slot Usage (%) 90 | . 100 100 90 81 Engine 15 | . 14 14 18 7 Treads 6 | . . . 8 11 Leg 8 | . 28 28 3 . Wheel 4 | . . . 7 . Device 16 | . 10 14 18 15 Storage 11 | . 17 14 11 9 Processor 1 | . . . . 8 Protection 1 | . . . 2 . Energy Gun 15 | . 14 14 12 24 Energy Cannon 4 | . 8 14 2 . Ballistic Gun 2 | . 5 . 3 . Peak Build Rating 24 | 7 8 8 21 24 Average Rating 12 | 5 7 8 13 21 On Entrance 8 | . 7 8 8 21 Avg Prop Armor Cover (%) . | . . . . . Naked Turns . | . . . . . Heaviest Build 36 | 15 18 18 32 36 Greatest Support 40 | 40 20 20 40 40 Greatest Overweight (x) 6 | . . . 6 4 Average Overweight (x) . | . . . . . Largest Inventory Capacity 10 | 8 10 10 10 10 Average Capacity 9 | 7 9 10 10 10 Most Carried 10 | 6 7 9 10 6 Average Carried 5 | 2 6 7 5 5 Final Capacity 10 | 8 10 10 10 10 Final Carried 8 | 5 7 8 7 3 Class Distribution -------------------- 43% | Mutant 40% | Scavenger-Mutant 16% | Scavenger-Gunner Dominant Class ---------------- Mutant | -10/Materials Mutant | -10/Mines Scavenger-Mutant | -9/Materials Scavenger-Gunner | -8/Materials Resources | -11 -10 -10 -9 -8 ----------- Run | Yrd Mat Min Mat Mat Matter Collected 877 | 321 16 163 306 71 Remotely . | . . . . . Salvage Created 1690 | 122 16 271 831 450 Parts 88 | 10 2 12 47 17 Haulers Intercepted . | . . . . . Recyclers Shooed . | . . . . . Parts Field Recycled . | . . . . . Retrieved Matter . | . . . . . Parts Self-Destructed . | . . . . . Prevented . | . . . . . Parts Restored . | . . . . . Kills | -11 -10 -10 -9 -8 ------- Run | Yrd Mat Min Mat Mat Combat Hostiles Destroyed 34 | . . 5 22 7 Guns 22 | . . 2 14 6 Cannons 11 | . . 3 8 . Classes Destroyed 9 | 3 1 1 2 2 Worker 2 | 1 . . . 1 Tunneler 2 | 2 . . . . Recycler 5 | 1 . 3 1 . Operator 1 | . 1 . . . Watcher 2 | . . . . 2 Swarmer 15 | . . 5 10 . Grunt 11 | . . . 6 5 Sentry 7 | . . . 6 1 Specialist 1 | . . . . 1 Best Kill Streak 10 | 3 1 5 10 5 Combat Bots Only 5 | . . 3 5 5 Max Kills in Single Turn 1 | 1 1 1 1 1 Gunslinging . | . . . . . Exploded . | . . . . . Melee . | . . . . . Uniques/NPCs Destroyed . | . . . . . Combat | -11 -10 -10 -9 -8 -------- Run | Yrd Mat Min Mat Mat Hostile Shots Fired 317 | . . 21 192 104 Missed 85 | . . 2 50 33 Hits 232 | . . 19 142 71 Projectile 232 | . . 19 142 71 Critical Strikes 7 | . . 1 2 4 Damage Taken 3048 | . . 150 1573 1325 Core 915 | . . 13 351 551 Absorbed by Shields 139 | . . . 68 71 Core Remaining (%) 68 | 100 . 94 12 . Volleys Fired 141 | 11 3 11 83 33 Largest 3 | 2 2 2 2 3 Hottest 187 | 120 100 100 122 187 Shots Fired 265 | 22 4 22 134 83 Gun 223 | 21 1 11 107 83 Cannon 37 | . 3 11 23 . Launcher . | . . . . . Special 5 | 1 . . 4 . Kinetic 44 | 11 . . 33 . Thermal 221 | 11 4 22 101 83 Explosive . | . . . . . Electromagnetic . | . . . . . Robot Hit Streak 33 | 2 3 5 20 33 Robot Miss Streak 6 | 4 1 3 4 6 Penetration Max . | . . . . . Secondary Targets 3 | . . . . 3 Max Gunslinging Chain 1 | . . . . 1 Shots Hit Robots 172 | 9 3 12 91 57 Core Hits 70 | 5 2 8 35 20 Critical Kills . | . . . . . Critical Parts Destroyed . | . . . . . Critical Strikes 8 | . . . 3 5 Burn 8 | . . . 3 5 Melee Attacks . | . . . . . Impact . | . . . . . Slashing . | . . . . . Piercing . | . . . . . Sneak Attacks . | . . . . . Combat Hostiles . | . . . . . Follow-up Attacks . | . . . . . Damage Inflicted 2721 | 131 47 182 1262 1099 Guns 2213 | 107 12 43 952 1099 Cannons 436 | . 35 139 262 . Explosions . | . . . . . Melee . | . . . . . Ramming . | . . . . . Kinetic 290 | 75 . . 215 . Thermal 2431 | 56 47 182 1047 1099 Explosive . | . . . . . Electromagnetic . | . . . . . Impact . | . . . . . Slashing . | . . . . . Piercing . | . . . . . Highest Corruption . | . . . . . Average Corruption . | . . . . . Corruption Purged . | . . . . . Corruption Blocked . | . . . . . Overload Shots . | . . . . . Overflow Damage . | . . . . . Projectiles . | . . . . . Explosions . | . . . . . Melee . | . . . . . Knockbacks . | . . . . . Impact . | . . . . . Kinetic . | . . . . . Secondary . | . . . . . Self-Inflicted Damage . | . . . . . Shots . | . . . . . Rammed . | . . . . . Targets Rammed . | . . . . . Kicked . | . . . . . Crushed . | . . . . . Highest Temperature 590 | 20 9 45 427 590 Average Temperature 107 | 10 6 19 100 150 Received Heat Transfer 954 | . . . 526 428 Effects 14 | . . . 2 12 Shutdowns 5 | . . . 2 3 Energy Bleed 1 | . . . . 1 Interference 6 | . . . . 6 Matter Decay 1 | . . . . 1 Damage (minor) 1 | . . . . 1 Siege Activations . | . . . . . Martial Activations . | . . . . . Shielding Activations . | . . . . . Robots Disrupted . | . . . . . Combat Hostiles . | . . . . . Robots Corrupted . | . . . . . Combat Hostiles . | . . . . . Parts Fried . | . . . . . Impact Corruptions . | . . . . . Robots Melted 1 | . . . . 1 Combat Hostiles 1 | . . . . 1 Parts Melted 7 | . . . 5 2 Heat Transferred 5625 | 125 99 396 2452 2553 Parts Sabotaged . | . . . . . Parts Stolen . | . . . . . Parts Stripped . | . . . . . Power Chain Reactions . | . . . . . Alert | -11 -10 -10 -9 -8 ------- Run | Yrd Mat Min Mat Mat Maximum Alert Level . | . . . . . Low Security (%) 100 | 100 100 100 100 100 Level 1 . | . . . . . Level 2 . | . . . . . Level 3 . | . . . . . Level 4 . | . . . . . Level 5 . | . . . . . High Security . | . . . . . Max Security . | . . . . . Peak Influence 145 | 10 5 92 145 62 Initial 31 | . . . 24 31 Average 54 | 1 . 64 85 25 Influence Increases 922 | 20 5 142 576 179 Destroy 0b10 Robot/C 680 | . . 100 440 140 Destroy 0b10 Robot/NC 60 | 20 5 15 5 15 Destroy Leader 144 | . . 10 110 24 Allied During Kill 2 | . . 2 . . Successful Hack 1 | . . . 1 . Destroy Structure 5 | . . . 5 . Lose Combat Pursuer 30 | . . 15 15 . Influence Decreases 922 | 20 5 80 564 253 Entered New Map 81 | . . . 38 43 Time Decay 565 | 20 5 80 342 118 Lost Part 262 | . . . 170 92 Lost Ally 14 | . . . 14 . Squads Dispatched 8 | . . . 1 7 Investigation . | . . . . . Extermination . | . . . . . Reinforcement 3 | . . . 1 2 Assault 2 | . . . . 2 Garrison 3 | . . . . 3 Intercept . | . . . . . Searches Triggered . | . . . . . Construction Impeded 1 | . . . 1 . Haulers Reinforced . | . . . . . Active Scanning Responses . | . . . . . Cargo Convoy Interrupts . | . . . . . Stealth | -11 -10 -10 -9 -8 --------- Run | Yrd Mat Min Mat Mat Distress Signals 4 | . . . 2 2 Communications Jammed . | . . . . . Distress Signals . | . . . . . Times Spotted 52 | . 1 5 28 18 Peak Tracking Total 7 | . 1 3 7 5 Tactical Retreats 2 | . . 1 1 . Traps | -11 -10 -10 -9 -8 ------- Run | Yrd Mat Min Mat Mat Traps Triggered . | . . . . . Indirectly . | . . . . . Trap Hack Attempts . | . . . . . Triggered . | . . . . . Disarmed . | . . . . . Reprogrammed . | . . . . . Reused . | . . . . . Traps Extracted . | . . . . . Installed . | . . . . . Triggered . | . . . . . Machines | -11 -10 -10 -9 -8 ---------- Run | Yrd Mat Min Mat Mat Machines Disabled . | . . . . . Max in Single Turn . | . . . . . Garrison Access 1 | . . . . 1 Machines Repaired . | . . . . . Machines Dismantled . | . . . . . Machines Sabotaged . | . . . . . Overloaded Fab Kills . | . . . . . Hacking | -11 -10 -10 -9 -8 --------- Run | Yrd Mat Min Mat Mat Machines Accessed 3 | . 1 . 1 1 Terminals 2 | . 1 . . 1 Fabricators . | . . . . . Repair Stations . | . . . . . Recycling Units . | . . . . . Scanalyzers 1 | . . . 1 . Garrison Access . | . . . . . Total Hacks 8 | . 2 . 5 1 Successful 5 | . . . 5 . Failed 3 | . 2 . . 1 Catastrophic 1 | . . . . 1 Database Lockouts . | . . . . . Manual 1 | . . . . 1 Terminals 3 | . 2 . . 1 Fabricators . | . . . . . Repair Stations . | . . . . . Recycling Units . | . . . . . Scanalyzers 5 | . . . 5 . Garrison Access . | . . . . . Terminal Hacks . | . . . . . Fabricator Hacks . | . . . . . Repair Station Hacks . | . . . . . Recycling Unit Hacks . | . . . . . Scanalyzer 5 | . . . 5 . Insert Component 1 | . . . 1 . Analyze 1 | . . . 1 . Retrieve Study 3 | . . . 3 . Garrison Access Hacks . | . . . . . Unauthorized Hacks . | . . . . . Terminals . | . . . . . Fabricators . | . . . . . Repair Stations . | . . . . . Recycling Units . | . . . . . Scanalyzers . | . . . . . Garrison Access . | . . . . . Data Cores Recovered 1 | . 1 . . . Used . | . . . . . Hacking Detections 3 | . 1 . 1 1 Full Trace Events 2 | . 1 . 1 . Feedback Events . | . . . . . Feedback Blocked . | . . . . . Robot Schematics Acquired . | . . . . . Robots Built . | . . . . . Authchips . | . . . . . Time . | . . . . . Total Robot Build Rating . | . . . . . Part Schematics Acquired 1 | . . . 1 . Parts Built . | . . . . . Authchips . | . . . . . Time . | . . . . . Total Part Build Rating . | . . . . . Part Studies Acquired 3 | . . . 3 . Parts Repaired . | . . . . . Time . | . . . . . Parts Recycled . | . . . . . Recycled Matter . | . . . . . Retrieved Matter . | . . . . . Retrieved Components . | . . . . . Parts Scanalyzed 1 | . . . 1 . Part Schematics Acquired 1 | . . . 1 . Parts Damaged . | . . . . . Bothacking | -11 -10 -10 -9 -8 ------------ Run | Yrd Mat Min Mat Mat Used RIF Installer . | . . . . . Robots Hacked . | . . . . . Non-combat . | . . . . . Combat . | . . . . . Robot Hacks Applied . | . . . . . Relay Couplers Released 1 | . . . . 1 Machine Destruction 1 | . . . . 1 Fabnet Peak Effective % . | . . . . . Robots Rewired . | . . . . . Allies Hacked . | . . . . . Hacks Repelled . | . . . . . Allies | -11 -10 -10 -9 -8 -------- Run | Yrd Mat Min Mat Mat Total Allies 1 | . . 1 . . Largest Group 1 | . . 1 1 . Highest-Rated Group 31 | . . 31 31 . Highest-Rated Ally 31 | . . 31 31 . Total Orders . | . . . . . Ally Attacks 6 | . . 1 5 . Total Damage 62 | . . . 62 . Kills . | . . . . . Allies Corrupted . | . . . . . Allies Melted . | . . . . . Intel | -11 -10 -10 -9 -8 ------- Run | Yrd Mat Min Mat Mat Active Infowar (turns) 374 | . . . 374 . Terrain 104 | . . . 104 . Seismic 372 | . . . 372 . Robot Analysis Total . | . . . . . Derelict Logs Recovered 1 | . . 1 . . Drone Launches . | . . . . . Drone Recoveries . | . . . . . Exploration | -11 -10 -10 -9 -8 ------------- Run | Yrd Mat Min Mat Mat Turns Passed 1570 | 197 134 170 777 292 Spaces Moved 742 | 90 99 112 353 88 Core 8 | 2 . . 3 3 Treads 293 | 70 . . 149 74 Legs 263 | 18 99 112 34 . Wheels 178 | . . . 167 11 Hover . | . . . . . Flight . | . . . . . Fastest Speed 50 | 50 120 120 85 95 Average Speed 137 | 149 120 120 132 187 Slowest Speed 350 | 160 120 120 350 250 Overloaded Moves . | . . . . . Propulsion Burnouts . | . . . . . Robots Hopped . | . . . . . Potential Cave-ins . | . . . . . Cave-ins Triggered . | . . . . . Exploration Rate (%) 20 | 5 23 26 33 14 Regions Visited 4 Branch Regions 1 Pre-discovered Areas 1 | . . 1 . . Known Exits Taken . | . . . . . Unknown Exits Taken 4 | 1 1 1 1 . Scrap Searched . | . . . . . Spaces Dug . | . . . . . Terrain Destroyed 2 | . . . 2 . Melee . | . . . . . Projectile 2 | . . . 2 . AOE . | . . . . . Terrain Rammed . | . . . . . Walls Destroyed . | . . . . . Machines Disabled . | . . . . . Actions | -11 -10 -10 -9 -8 --------- Run | Yrd Mat Min Mat Mat Total 1020 | 124 109 125 517 145 Wait 50 | . . . 37 13 Move 738 | 89 98 111 352 88 Hop . | . . . . . Pick Up 20 | 8 3 1 7 1 Fast Attach 26 | 7 . . 15 4 Attach 12 | 1 . . 6 5 Detach 1 | . . . 1 . Swap 22 | 5 3 1 12 1 Drop 10 | 3 2 1 4 . Fire 141 | 11 3 11 83 33 Melee . | . . . . . Ram . | . . . . . Kick . | . . . . . Crush . | . . . . . Escape Stasis . | . . . . . Rewire . | . . . . . Trap . | . . . . . Miscellaneous . | . . . . . Route ------- -11/Scrapyard -10/Materials -10/Mines -9/Materials -8/Materials (discovered 1 exit: [*Fac]) History --------- Turn | Location | Event 10 | -11/Scrapyard | Discovered new exit (range 15) 198 | -11/Scrapyard | Entered Materials 285 | -10/Materials | Discovered new exit (range 5) 309 | -10/Materials | Build established: Mutant 332 | -10/Materials | Entered Mines 382 | -10/Mines | Received a Mining Laser from a helpful Derelict 468 | -10/Mines | Learned location of Storage (-7) 482 | -10/Mines | Discovered new exit (range 13) 502 | -10/Mines | Entered Materials 502 | -9/Materials | Accompanied by 1 ally 502 | -9/Materials | Evolved 2 slots: Power x1, Utility x1 635 | -9/Materials | Lost 3 parts (1p2n) 822 | -9/Materials | Core integrity fell below 50% 868 | -9/Materials | Lost 7 parts (2p1n2u2w) 1005 | -9/Materials | Lost 5 parts (2p1n2w) 1071 | -9/Materials | Core integrity fell below 20% 1152 | -9/Materials | Build established: Scavenger-Mutant 1255 | -9/Materials | Discovered new exit (range 15) 1279 | -9/Materials | Entered another Materials area 1279 | -8/Materials | Evolved 2 slots: Utility x1, Weapon x1 1348 | -8/Materials | Garrison activated, responded to threat 1429 | -8/Materials | Lost 5 parts (2p1n1u1w) 1540 | -8/Materials | Discovered new exit (range 16) 1558 | -8/Materials | Core integrity fell below 50% 1564 | -8/Materials | Core integrity fell below 20% 1571 | -8/Materials | Destroyed by G-47 Trooper with Particle Gun Last Messages --------------- K-01 Serf collects debris. Penetrated by Slug. Wheel destroyed. Imp. Heat Sink destroyed. Knocked back. K-01 Serf collects debris. Targeting Computer destroyed. Critical hit (Burn: +37). ALERT: Garrison Access compromised, dispatching multiple assault carriers. Relay Coupler [NC] tumbles out of Garrison Access. K-01 Serf collects debris. Penetrated by Slug. Knocked back. K-01 Serf collects debris. Slug penetrates G-47 Trooper. Critical hit (Burn: +37). Slug penetrates Garrison Access. K-01 Serf collects debris. Map ----- +----------------------------------------------------+ | ?????????????????????????????????????????????????? | | ???????????????????????????#####?????????????????? | | ??????????????????????????? ?????????????????? | | ???????????????????????????? ?????????????????? | | ???????????????????????????? ?????????????????? | | ????????????????????????????# #????????????????? | | ????????????????????????????# #?########???????? | | ????????????????????######### #?#!!!!!!#???????? | | ??????????????????? #?#!!!!!!#???????? | | ????????????????????? #?# #???????? | | ????????????????????? ### ######### | | ????????????????????????????#= % | | ????????????????????????????#% % | | ????????????????????????????# | | ????????????????????????????#% %#############+#### | | ????????????????????????????# # #?? ????? | | ????????????????????????????# # """ # ""?????? | | ????????????????????????????# + """ # ???????? | | ????????????????????????????# # """ #????????? | | ????????????????????????????# / """ #????????? | | ????????????????????????????#% # #????????? | | ????????????????????????????# #?""" #????????? | | ?????????????########+#######%* #??"" #????????? | | ?????????????# #??"" #????????? | | ?????????????# % #???" #????????? | | ?????????????# @" #????????????????? | | ?????????????# " = ####????????????????? | | ?????????????# ! """%%"g %!#???????????????????? | | ?????????????# """Y !%k#???????????????????? | | ?????????????# """ = #???????????????????? | | ?????????????# """ H #???????????????????? | | ??????????????? #???????????????????? | | ???????????????? #???????????????????? | | ??????????????? #???????????????????? | | ?????????????? ###+### +???????????????????? | | ??????????????##+##?? ?# #???????????????????? | | ????????????????????? " ?# < #???????????????????? | | ????????????????????# T ?# #???????????????????? | | ????????????????????# " ??####???????????????????? | | ???????????????????? ? ?????????????????????????? | | ????????????????????#!?[?????????????????????????? | | ????????????????????#!?[?????????????????????????? | | ????????????????????#!? ?????????????????????????? | | ?????????????????????????????????????????????????? | | ?????????????????????????????????????????????????? | | ?????????????????????????????????????????????????? | | ?????????????????????????????????????????????????? | | ?????????????????????????????????????????????????? | | ?????????????????????????????????????????????????? | | | +----------------------------------------------------+ Best States ------------- Heat Dissipation 59 Energy Generation 19 Energy Capacity 430 Matter Stores 380 Matter Capacity 400 Sight Range 16 Terrain Scan Range 16 Terrain Scan Density 10 Armor Coverage 150 Evasion (%) 55 Targeting Accuracy 5 Recoil Reduction 2 Offensive Hacking 10 Item Schematics ----------------- Heat Sink | -9/Materials | Scanalyzed Robot Schematics ------------------ None Fabricated ------------ Nothing Repaired ---------- Nothing Studied --------- Lgt. Ion Engine | -9/Materials | Hacked Com. Wheel | -9/Materials | Hacked Sml. Laser | -9/Materials | Hacked Alien Tech Used ----------------- None Achievements -------------- Heavy Suspicion Item+ Challenges ------------ None Game ------ Seed CobblerActuatorDissipator Manual? 0 Play Time 00:27:48 Cumulative 3.3 hours Start 2025.12.24 @ 15:46:48 End 2025.12.24 @ 16:13:20 Sessions 1 Manual Loads 0 Difficulty Rogue Special Mode None Game No. 6 Rogue 6 Adventurer 0 Explorer 0 Win Type - Total 0 Types 0/0/0/0/0/0/0/0/0/0 Lore% 0 Gallery% 8 Achievement% 6 Wizard Run 0 Options --------- Layout 1 ASCII 0 Keyboard 0 Movement Mouse Keybinds 0 Fullscreen 1 Font 24/Smallcaps Map View 50x35 Zoom Use 0% Tactical HUD 0 Map Filters NONE Filters NONE Steam 1 RUN: b3804a4d-2095-46b5-967f-e1120170680f